bitfinex/quotes_BTCUSD_20230103
["timestamp","ask_amount","ask_price","bid_price","bid_amount"]
[1672746127954,1.18193644,16758.0,16757.0,2.71403179]
[1672746128747,0.62071344,16758.0,16757.0,2.71403179]
[1672746129532,0.62071344,16758.0,16757.0,2.01403179]
[1672746130515,0.62071344,16758.0,16757.0,2.71403179]
[1672746135967,0.64413819,16758.0,16757.0,2.71403179]
[1672746136217,1.18183454,16758.0,16757.0,2.71403179]
[1672746136440,1.18183454,16758.0,16757.0,2.01403179]
[1672746136735,1.18183454,16758.0,16757.0,2.71403179]
[1672746137255,0.62061154,16758.0,16757.0,2.71403179]
[1672746137776,1.18176523,16758.0,16757.0,0.71365052]
[1672746138036,2.46991517,16758.0,16757.0,0.71365052]
[1672746138294,2.46991517,16758.0,16757.0,0.01365052]
[1672746138295,3.1317502,16758.0,16757.0,0.01365052]
[1672746138565,2.54689454,16758.0,16757.0,0.01365052]
[1672746138832,3.15144434,16758.0,16757.0,0.01365052]
[1672746139358,3.14151365,16758.0,16755.0,3.32873856]
[1672746139616,2.73652708,16758.0,16757.0,0.002]
[1672746139874,3.26452033,16758.0,16757.0,0.002]
[1672746140132,3.27048799,16758.0,16757.0,0.002]
[1672746140685,3.27025609,16758.0,16757.0,0.002]
[1672746140939,3.14125609,16758.0,16755.0,0.68223856]
[1672746141198,0.53713056,16756.0,16755.0,0.68323856]
[1672746141446,1.10432122,16756.0,16755.0,0.68223856]
[1672746141697,0.54309822,16756.0,16755.0,0.68223856]
[1672746141992,0.00596766,16756.0,16755.0,0.68223856]
[1672746142546,0.00596766,16756.0,16755.0,0.69323856]
[1672746142801,0.01596766,16756.0,16755.0,0.69323856]
[1672746143561,0.55309822,16756.0,16755.0,0.69323856]
[1672746144064,0.59990841,16756.0,16755.0,0.69323856]
[1672746144609,0.59990841,16756.0,16755.0,1.41291026]
[1672746144869,0.01596766,16756.0,16755.0,1.41291026]
[1672746145937,0.46340419,16756.0,16755.0,1.41291026]
[1672746146188,0.46340351,16756.0,16755.0,1.41291026]
[1672746147334,0.01596766,16756.0,16755.0,1.41291026]
[1672746147919,0.01596766,16756.0,16755.0,0.011]
[1672746148174,1.20086191,16756.0,16755.0,0.011]
[1672746148426,0.66373135,16756.0,16755.0,0.011]
[1672746148923,1.20086191,16756.0,16755.0,0.011]
[1672746149578,0.66373135,16756.0,16755.0,0.011]
[1672746150581,1.20086191,16756.0,16755.0,0.011]
[1672746151027,1.20086191,16756.0,16755.0,0.7306717]
[1672746151279,1.11105386,16756.0,16755.0,0.7306717]
[1672746152027,1.11105386,16756.0,16755.0,0.011]
[1672746152279,0.66373135,16756.0,16755.0,0.011]
[1672746152792,1.20086191,16756.0,16755.0,0.011]
[1672746153266,0.66373135,16756.0,16755.0,0.011]
[1672746154714,0.73626092,16756.0,16755.0,0.011]
[1672746156450,1.27339148,16756.0,16755.0,0.011]
[1672746156698,0.73626092,16756.0,16755.0,0.011]
[1672746157932,1.27339148,16756.0,16755.0,0.011]
[1672746159935,0.73626092,16756.0,16755.0,0.011]
[1672746160183,1.27339148,16756.0,16755.0,0.011]
[1672746160698,0.73626092,16756.0,16755.0,0.011]
[1672746161201,1.27339148,16756.0,16755.0,0.011]
[1672746162401,1.27339148,16756.0,16755.0,0.01090682]
[1672746164410,1.83461448,16756.0,16755.0,0.01090682]
[1672746166041,1.27339148,16756.0,16755.0,0.01090682]
[1672746171075,1.83461448,16756.0,16755.0,0.01090682]
[1672746173092,1.29748392,16756.0,16755.0,0.01090682]
[1672746176802,0.73626092,16756.0,16755.0,0.01090682]
[1672746178075,1.34055138,16756.0,16755.0,0.01090682]
[1672746178314,1.34055138,16756.0,16755.0,0.73057852]
[1672746178809,0.73626092,16756.0,16755.0,0.73057852]
[1672746179577,0.73626092,16756.0,16755.0,0.01090682]
[1672746181552,1.34055138,16756.0,16755.0,0.01090682]
[1672746182020,1.93735238,16756.0,16755.0,0.01090682]
[1672746182281,3.09537638,16756.0,16755.0,0.01090682]
[1672746182826,3.09537638,16756.0,16755.0,0.01079536]
[1672746185322,2.49857538,16756.0,16755.0,0.01079536]
[1672746185578,1.89428492,16756.0,16755.0,0.01079536]
[1672746187878,2.49857538,16756.0,16755.0,0.01079536]
[1672746188386,1.89428492,16756.0,16755.0,0.01079536]
[1672746188638,2.49857538,16756.0,16755.0,0.01079536]
[1672746189438,1.89428492,16756.0,16755.0,0.01079536]
[1672746190256,2.49857538,16756.0,16755.0,0.01079536]
[1672746190776,1.89428492,16756.0,16755.0,0.01079536]
[1672746192996,2.49857538,16756.0,16755.0,0.01079536]
[1672746193757,2.18428663,16756.0,16755.0,0.01079536]
[1672746194023,3.09537638,16756.0,16755.0,0.01079536]
[1672746194283,2.49857538,16756.0,16755.0,0.01079536]
[1672746195971,3.09537638,16756.0,16755.0,0.01079536]
[1672746196424,2.49857538,16756.0,16755.0,0.01079536]
[1672746201916,3.09537638,16756.0,16755.0,0.01079536]
[1672746202168,2.62099689,16756.0,16755.0,0.01079536]
[1672746202443,2.63894361,16756.0,16755.0,0.01079536]
[1672746202702,3.35861531,16756.0,16755.0,0.01079536]
[1672746203475,3.34861531,16756.0,16754.0,0.00121622]
[1672746203732,1.11086893,16755.0,16754.0,0.00121622]
[1672746204003,2.86576393,16755.0,16754.0,0.00121622]
[1672746204537,3.46259993,16755.0,16754.0,0.00121622]
[1672746204792,3.53495147,16755.0,16754.0,0.00221622]
[1672746205045,2.9300502,16755.0,16754.0,0.00121622]
[1672746205307,3.0630502,16755.0,16754.0,0.00210932]
[1672746205561,4.81965662,16755.0,16754.0,0.00210932]
[1672746205816,3.8519901,16755.0,16754.0,0.00210932]
[1672746206059,4.45664001,16755.0,16754.0,0.00210932]
[1672746206319,3.8519901,16755.0,16754.0,0.00210932]
[1672746207072,4.45663245,16755.0,16754.0,0.00210932]
[1672746207330,3.8519901,16755.0,16754.0,0.00210932]
[1672746207838,4.45647059,16755.0,16754.0,0.00210932]
[1672746208336,4.78202033,16755.0,16754.0,0.00210932]
[1672746208833,4.06234863,16755.0,16754.0,0.00210932]
[1672746209354,4.47978043,16755.0,16754.0,0.00210932]
[1672746209619,4.67592715,16755.0,16754.0,0.00210932]
[1672746217538,4.73831692,16755.0,16754.0,0.00210932]
[1672746218041,4.67592715,16755.0,16754.0,0.00210932]
[1672746219506,4.73831692,16755.0,16754.0,0.00210932]
[1672746219769,4.67592715,16755.0,16754.0,0.00210932]
[1672746222848,4.49772715,16755.0,16754.0,0.00210932]
[1672746229844,4.49772715,16755.0,16754.0,0.00202727]
[1672746232398,0.5,16754.0,16751.0,0.00387082]
[1672746232627,0.5,16752.0,16751.0,0.00387082]
[1672746232908,3.76095487,16752.0,16751.0,0.00387082]
[1672746233158,3.76945487,16752.0,16751.0,0.00387082]
[1672746233910,3.7903948,16752.0,16751.0,0.00387082]
[1672746234170,4.3516178,16752.0,16751.0,0.00387082]
[1672746234426,3.44868259,16752.0,16751.0,0.00387082]
[1672746234924,3.58368259,16752.0,16751.0,0.00387082]
[1672746235995,4.27682184,16752.0,16751.0,0.00387082]
[1672746236216,3.11266363,16752.0,16751.0,0.00387082]
[1672746236467,3.67388663,16752.0,16751.0,0.00387082]
[1672746236982,4.27682184,16752.0,16751.0,0.00387082]
[1672746237743,3.71559884,16752.0,16751.0,0.00387082]
[1672746238001,4.27682184,16752.0,16751.0,0.00387082]
[1672746238247,3.71559884,16752.0,16751.0,0.00387082]
[1672746238528,4.57682184,16752.0,16751.0,0.00387082]
[1672746239006,3.71559884,16752.0,16751.0,0.00387082]
[1672746239254,4.27682184,16752.0,16751.0,0.00387082]
[1672746239501,3.71559884,16752.0,16751.0,0.00387082]
[1672746239765,4.27682184,16752.0,16751.0,0.00387082]
[1672746240014,3.71559884,16752.0,16751.0,0.00387082]
[1672746240269,4.27682184,16752.0,16751.0,0.00387082]
[1672746240521,3.0917237,16752.0,16751.0,0.00387082]
[1672746240785,3.76357042,16752.0,16751.0,0.00387082]
[1672746244984,4.48324212,16752.0,16751.0,0.00387082]
[1672746245268,3.76357042,16752.0,16751.0,0.00387082]
[1672746245757,4.64265723,16752.0,16751.0,0.00387082]
[1672746247022,3.76357042,16752.0,16751.0,0.00387082]
[1672746247535,4.64265723,16752.0,16751.0,0.00387082]
[1672746248016,5.36232893,16752.0,16751.0,0.00387082]
[1672746248518,4.64265723,16752.0,16751.0,0.00387082]
[1672746252904,4.46595723,16752.0,16751.0,0.00387082]
[1672746254176,4.46595723,16752.0,16751.0,0.00375084]
[1672746255997,5.05738227,16752.0,16751.0,0.00375084]
[1672746256252,4.46595723,16752.0,16751.0,0.00375084]
[1672746258311,5.18562893,16752.0,16751.0,0.00375084]
[1672746258574,4.46595723,16752.0,16751.0,0.00375084]
[1672746259661,1.15359976,16751.0,16750.0,0.05415344]
[1672746259931,2.69047305,16751.0,16750.0,0.05415344]
[1672746260188,3.25766371,16751.0,16750.0,0.05415344]
[1672746260988,3.39066371,16751.0,16750.0,0.05415344]
[1672746261821,3.16662766,16751.0,16750.0,0.05415344]
[1672746262091,3.00262766,16751.0,16750.0,0.05415344]
[1672746262346,3.30262766,16751.0,16750.0,0.05415344]
[1672746262853,3.85077749,16751.0,16750.0,0.05415344]
[1672746264132,3.30262766,16751.0,16750.0,0.05415344]
[1672746264394,3.90302993,16751.0,16750.0,0.05415344]
[1672746265369,4.59402221,16751.0,16750.0,0.05415344]
[1672746266352,3.90302993,16751.0,16750.0,0.05415344]
[1672746266869,4.41688003,16751.0,16750.0,0.05415344]
[1672746267886,3.90302993,16751.0,16750.0,0.05415344]
[1672746268647,4.47139286,16751.0,16750.0,0.05415344]
[1672746268896,4.62270163,16751.0,16750.0,0.05415344]
[1672746269150,3.90302993,16751.0,16750.0,0.05415344]
[1672746269688,4.78211674,16751.0,16750.0,0.05415344]
[1672746269920,4.65815084,16751.0,16750.0,0.05415344]
[1672746270159,3.9687604,16751.0,16750.0,0.05415344]
[1672746271208,4.84784721,16751.0,16750.0,0.05415344]
[1672746272228,5.58546563,16751.0,16750.0,0.05415344]
[1672746272494,4.86579393,16751.0,16750.0,0.05415344]
[1672746272761,5.58546563,16751.0,16750.0,0.05415344]
[1672746273554,5.76366563,16751.0,16750.0,0.05415344]
[1672746273782,4.88457882,16751.0,16750.0,0.05415344]
[1672746274035,4.91780857,16751.0,16750.0,0.0487381]
[1672746274286,4.88457882,16751.0,16750.0,0.0487381]
[1672746275341,4.88457882,16751.0,16750.0,1e-07]
[1672746275597,4.88457882,16751.0,16749.0,0.00287277]
[1672746275866,2.19070726,16750.0,16749.0,0.00287277]
[1672746276123,3.95192592,16750.0,16749.0,0.00287277]
[1672746276379,3.96987264,16750.0,16749.0,0.00287277]
[1672746276644,3.95192592,16750.0,16749.0,0.00287277]
[1672746276905,4.54893992,16750.0,16749.0,0.00287277]
[1672746277171,4.68393992,16750.0,16749.0,0.00287277]
[1672746277446,4.70188664,16750.0,16749.0,0.00287277]
[1672746277950,4.56688664,16750.0,16749.0,0.00287277]
[1672746278209,4.70288664,16750.0,16749.0,0.00287277]
[1672746278468,4.74378664,16750.0,16748.0,0.02081972]
[1672746278731,1.86902804,16749.0,16748.0,0.02081972]
[1672746278981,4.2358687,16749.0,16748.0,0.02081972]
[1672746279233,4.55381542,16749.0,16748.0,0.02081972]
[1672746279777,4.37561542,16749.0,16748.0,0.02081972]
[1672746280036,4.51161542,16749.0,16748.0,0.02081972]
[1672746280295,4.51161542,16749.0,16748.0,0.01873775]
[1672746281139,5.39176857,16749.0,16748.0,0.01873775]
[1672746281325,4.51161542,16749.0,16748.0,0.01873775]
[1672746282060,4.51161542,16749.0,16748.0,0.01353831]
[1672746282326,4.68981542,16749.0,16748.0,0.01353831]
[1672746283056,4.55381542,16749.0,16748.0,0.01353831]
[1672746283306,4.68981542,16749.0,16748.0,0.01353831]
[1672746283564,4.07943676,16749.0,16748.0,0.01353831]
[1672746283814,4.21543676,16749.0,16748.0,0.01353831]
[1672746284063,4.07943676,16749.0,16748.0,0.01353831]
[1672746284562,4.21043676,16749.0,16748.0,0.01353831]
[1672746285306,4.21043676,16749.0,16748.0,0.43179833]
[1672746285307,4.50272679,16749.0,16748.0,0.43179833]
[1672746285554,3.61463482,16749.0,16748.0,0.19173831]
[1672746286319,3.47863482,16749.0,16748.0,0.19173831]
[1672746286564,3.91063482,16749.0,16748.0,0.19273831]
[1672746286830,3.77863482,16749.0,16748.0,0.19173831]
[1672746287081,3.77863482,16749.0,16748.0,0.19273831]
[1672746287082,3.91813482,16749.0,16748.0,0.19273831]
[1672746288333,3.42313482,16749.0,16748.0,0.19273831]
[1672746288840,3.42313482,16749.0,16748.0,0.18773831]
[1672746289104,2.79784066,16749.0,16748.0,0.18773831]
[1672746289353,2.23661766,16749.0,16748.0,0.18773831]
[1672746289615,3.29784066,16749.0,16748.0,0.18773831]
[1672746289903,3.90582637,16749.0,16748.0,0.18773831]
[1672746290361,3.29784066,16749.0,16748.0,0.18773831]
[1672746290615,3.84687564,16749.0,16748.0,0.18773831]
[1672746291361,3.34687564,16749.0,16748.0,0.18773831]
[1672746292367,3.50060014,16749.0,16748.0,0.18773831]
[1672746292869,3.91036155,16749.0,16748.0,0.18773831]
[1672746293115,3.20760207,16749.0,16748.0,0.18773831]
[1672746293360,3.20760207,16749.0,16748.0,0.00953831]
[1672746294378,3.92405145,16749.0,16748.0,0.00953831]
[1672746294906,3.20760207,16749.0,16748.0,0.00953831]
[1672746295895,3.78053299,16749.0,16748.0,0.00953831]
[1672746296185,3.20760207,16749.0,16748.0,0.00953831]
[1672746296387,3.85546476,16749.0,16748.0,0.00953831]
[1672746296644,3.20760207,16749.0,16748.0,0.00953831]
[1672746296900,3.830322,16749.0,16748.0,0.00953831]
[1672746297414,3.20760207,16749.0,16748.0,0.00953831]
[1672746297660,3.78639123,16749.0,16748.0,0.00953831]
[1672746298165,3.20760207,16749.0,16748.0,0.00953831]
[1672746298907,4.08719404,16749.0,16748.0,0.00953831]
[1672746299662,4.80364342,16749.0,16748.0,0.00953831]
[1672746299988,4.82159014,16749.0,16748.0,0.00953831]
[1672746300925,8.82159014,16749.0,16748.0,0.00953831]
[1672746301173,7.94199817,16749.0,16748.0,0.00953831]
[1672746302727,8.44199817,16749.0,16748.0,0.00953831]
[1672746303768,7.94199817,16749.0,16748.0,0.00953831]
[1672746303966,8.44199817,16749.0,16748.0,0.00953831]
[1672746304485,8.12019817,16749.0,16748.0,0.00953831]
[1672746305053,8.62019817,16749.0,16748.0,0.00953831]
[1672746305320,8.12019817,16749.0,16748.0,0.00953831]
[1672746305587,7.98919817,16749.0,16748.0,0.00853831]
[1672746305847,8.12519817,16749.0,16748.0,0.00853831]
[1672746306097,7.98919817,16749.0,16748.0,0.00853831]
[1672746306404,8.12519817,16749.0,16748.0,0.00853831]
[1672746308291,8.62519817,16749.0,16748.0,0.00853831]
[1672746308541,8.62519817,16749.0,16748.0,3.1e-07]
[1672746308815,8.62519817,16749.0,16747.0,0.01243453]
[1672746309064,0.3085,16748.0,16747.0,0.01243453]
[1672746309323,3.59999277,16748.0,16747.0,0.01243453]
[1672746309592,3.61793949,16748.0,16747.0,0.01243453]
[1672746309847,3.79513949,16748.0,16747.0,0.01243453]
[1672746310387,3.79513949,16748.0,16747.0,5.3e-07]
[1672746310388,4.47394682,16748.0,16747.0,5.3e-07]
[1672746310663,4.22968949,16748.0,16745.0,0.01243941]
[1672746310920,0.88641943,16746.0,16745.0,0.01243941]
[1672746311179,4.59444956,16746.0,16745.0,0.01243941]
[1672746311432,4.17691476,16746.0,16745.0,0.01243941]
[1672746312108,4.17691476,16746.0,16744.0,0.01866103]
[1672746312109,4.34614451,16746.0,16744.0,0.01866103]
[1672746312323,4.34614451,16746.0,16742.0,0.01952053]
[1672746312324,2.67099358,16745.0,16742.0,0.01952053]
[1672746312550,0.88005958,16743.0,16742.0,0.01952053]
[1672746312771,3.10550462,16743.0,16742.0,0.01952053]
[1672746313024,2.96822496,16743.0,16742.0,0.01952053]
[1672746313237,2.57021866,16743.0,16742.0,0.01952053]
[1672746313672,2.70621866,16743.0,16742.0,0.01952053]
[1672746313905,2.72223927,16743.0,16742.0,0.01952053]
[1672746314363,2.58623927,16743.0,16742.0,0.01952053]
[1672746314601,2.28623927,16743.0,16742.0,0.01952053]
[1672746314820,3.0251865,16743.0,16742.0,0.4907463]
[1672746315045,2.28623927,16743.0,16742.0,0.8460463]
[1672746315256,1.27424888,16743.0,16742.0,0.8460463]
[1672746315495,1.27424888,16743.0,16742.0,1.0242463]
[1672746316035,0.73823166,16743.0,16742.0,1.0242463]
[1672746316282,0.60323166,16743.0,16742.0,1.6388153]
[1672746316536,0.73723166,16743.0,16742.0,1.6388153]
[1672746316801,0.45264268,16743.0,16742.0,2.95233891]
[1672746317077,0.597224,16745.0,16743.0,0.5]
[1672746317078,0.53601722,16745.0,16743.0,0.5]
[1672746317340,0.53601722,16745.0,16744.0,1.8612034]
[1672746317616,0.53601722,16745.0,16744.0,3.17116342]
[1672746317617,0.35743217,16745.0,16744.0,3.17116342]
[1672746317868,0.35743217,16745.0,16744.0,2.9311034]
[1672746317869,0.36340446,16745.0,16744.0,2.9311034]
[1672746318118,0.49440446,16745.0,16744.0,2.9311034]
[1672746318373,0.6314877,16745.0,16744.0,2.9311034]
[1672746318633,0.82321267,16745.0,16744.0,2.9321034]
[1672746318897,0.4657805,16745.0,16744.0,3.51665589]
[1672746319146,0.4657805,16745.0,16744.0,2.9321034]
[1672746319505,0.4657805,16745.0,16744.0,4.23257542]
[1672746319673,0.6314877,16745.0,16744.0,3.63434742]
[1672746319902,0.8281633,16745.0,16744.0,3.63534742]
[1672746320154,0.6494877,16745.0,16744.0,3.63534742]
[1672746320691,0.6493798,16745.0,16744.0,3.63534742]
[1672746320941,0.64937139,16745.0,16744.0,3.63534742]
[1672746321952,0.38140446,16745.0,16744.0,3.63534742]
[1672746322485,0.97859746,16745.0,16744.0,1.6846034]
[1672746322741,1.82440132,16745.0,16744.0,0.356]
[1672746322987,2.34018879,16745.0,16744.0,0.357]
[1672746323291,2.32718879,16745.0,16744.0,0.356]
[1672746323527,2.34518879,16745.0,16744.0,0.357]
[1672746323790,1.80917157,16745.0,16744.0,0.357]
[1672746324280,1.72999579,16745.0,16744.0,0.356]
[1672746324520,1.86099579,16745.0,16744.0,0.356]
[1672746325292,1.32497857,16745.0,16744.0,0.356]
[1672746325551,1.86099579,16745.0,16744.0,0.356]
[1672746326803,1.32497857,16745.0,16744.0,0.356]
[1672746327546,1.86099579,16745.0,16744.0,0.356]
[1672746328328,2.45818879,16745.0,16744.0,0.356]
[1672746329084,3.05538179,16745.0,16744.0,0.356]
[1672746329338,3.61660479,16745.0,16744.0,0.356]
[1672746329591,2.51936457,16745.0,16744.0,0.356]
[1672746330599,1.92217157,16745.0,16744.0,0.356]
[1672746330903,2.458042,16745.0,16744.0,0.356]
[1672746332385,1.92217157,16745.0,16744.0,0.356]
[1672746333389,0.13697229,16745.0,16744.0,0.97587054]
[1672746333654,0.13697229,16745.0,16744.0,1.69318094]
[1672746333900,0.13697229,16745.0,16744.0,2.30774994]
[1672746334401,0.58362624,16745.0,16744.0,2.48494994]
[1672746335184,0.94094169,16745.0,16744.0,4.15207794]
[1672746335428,0.94094169,16745.0,16744.0,4.74930594]
[1672746335675,1.20892561,16745.0,16744.0,4.74930594]
[1672746336221,0.76227166,16745.0,16744.0,4.74930594]
[1672746337946,0.63127166,16745.0,16744.0,4.74920363]
[1672746338196,0.64027166,16745.0,16744.0,4.76620363]
[1672746338444,0.63127166,16745.0,16744.0,4.74920363]
[1672746338700,0.64727166,16745.0,16744.0,4.76720363]
[1672746339747,0.46856649,16745.0,16744.0,4.76720363]
[1672746340267,0.20058257,16745.0,16744.0,4.76720363]
[1672746341319,0.02197229,16745.0,16744.0,5.36443163]
[1672746341825,0.02197229,16745.0,16744.0,4.74456109]
[1672746342084,0.02197229,16745.0,16744.0,5.46044934]
[1672746342611,0.02197229,16745.0,16744.0,4.74456109]
[1672746342843,0.02197229,16745.0,16744.0,5.31460234]
[1672746343628,0.02197229,16745.0,16744.0,4.74456109]
[1672746344165,0.02197229,16745.0,16744.0,5.35668505]
[1672746344419,0.02197229,16745.0,16744.0,4.75945705]
[1672746344959,0.02191043,16745.0,16744.0,4.75945705]
[1672746345983,0.02191043,16745.0,16744.0,4.14733309]
[1672746346275,0.02191043,16745.0,16744.0,4.67257133]
[1672746346576,0.02191043,16745.0,16744.0,4.14733309]
[1672746346848,0.02191043,16745.0,16744.0,4.74456109]
[1672746347363,0.02191043,16745.0,16744.0,5.4543851]
[1672746350366,0.02191043,16745.0,16744.0,4.74456109]
[1672746350368,0.02191043,16745.0,16744.0,5.35187196]
[1672746350631,0.02191043,16745.0,16744.0,5.28739669]
[1672746351368,0.02191043,16745.0,16744.0,4.74456109]
[1672746352305,0.02191043,16745.0,16744.0,5.45582202]
[1672746352556,0.02191043,16745.0,16744.0,4.74456109]
[1672746353082,0.02191043,16745.0,16744.0,5.33725128]
[1672746354665,0.02191043,16745.0,16744.0,5.33060165]
[1672746356567,0.02191043,16745.0,16744.0,4.74456109]
[1672746356853,0.02191043,16745.0,16744.0,5.27192337]
[1672746357145,0.02191043,16745.0,16744.0,4.74456109]
[1672746357411,0.02191043,16745.0,16744.0,5.4201422]
[1672746357697,0.02191043,16745.0,16744.0,4.74456109]
[1672746358949,0.02191043,16745.0,16744.0,3.6763634]
[1672746359195,0.02191043,16745.0,16744.0,5.4440634]
[1672746362373,0.02191043,16745.0,16744.0,6.16117438]
[1672746362627,0.02191043,16745.0,16744.0,4.7440634]
[1672746362886,0.02191043,16745.0,16744.0,4.86511711]
[1672746363678,0.02191043,16745.0,16744.0,4.1468354]
[1672746363937,0.02191043,16745.0,16744.0,4.66234815]
[1672746364196,0.09280193,16745.0,16744.0,4.1468354]
[1672746364457,0.09280193,16745.0,16744.0,4.85136488]
[1672746365030,0.09280193,16745.0,16744.0,4.1468354]
[1672746365293,0.09280193,16745.0,16744.0,4.7440634]
[1672746365553,0.09280193,16745.0,16744.0,5.33989996]
[1672746366109,0.09280193,16745.0,16744.0,5.33982747]
[1672746366646,0.09280193,16745.0,16744.0,4.14537147]
[1672746366901,0.27141221,16745.0,16744.0,4.14537147]
[1672746367153,0.27141221,16745.0,16744.0,2.28437496]
[1672746367440,0.91649013,16745.0,16744.0,0.96983656]
[1672746367705,1.18447405,16745.0,16744.0,0.79103656]
[1672746368469,1.54184925,16745.0,16744.0,0.1952]
[1672746368743,1.36338002,16745.0,16744.0,0.1952]
[1672746369261,1.36338002,16745.0,16744.0,0.3723]
[1672746369505,1.54184925,16745.0,16744.0,0.986869]
[1672746369748,1.54184925,16745.0,16744.0,1.7041794]
[1672746370017,1.54184925,16745.0,16744.0,0.986869]
[1672746370238,2.3789198,16745.0,16744.0,0.986869]
[1672746370498,2.3789198,16745.0,16744.0,0.3723]
[1672746370754,1.93226585,16745.0,16744.0,0.3723]
[1672746371310,1.93226585,16745.0,16744.0,0.018]
[1672746371541,2.46813628,16745.0,16744.0,0.018]
[1672746372303,3.04939114,16745.0,16743.0,0.1782]
[1672746372594,3.17739114,16745.0,16744.0,0.002]
[1672746372845,0.00597229,16744.0,16743.0,0.1782]
[1672746373071,1.73032643,16744.0,16742.0,1.51486939]
[1672746373328,0.80492877,16743.0,16742.0,0.91393093]
[1672746373580,1.07916601,16743.0,16742.0,0.91393093]
[1672746374374,0.63198336,16743.0,16742.0,0.91393093]
[1672746375116,1.07916601,16743.0,16742.0,0.91393093]
[1672746375372,0.69198336,16743.0,16742.0,0.91693093]
[1672746375627,0.69198336,16743.0,16742.0,0.19962053]
[1672746375881,0.87077629,16743.0,16742.0,0.19962053]
[1672746376128,1.13900613,16743.0,16742.0,1.60856539]
[1672746376398,1.13900838,16743.0,16742.0,1.60856539]
[1672746376903,0.87077629,16743.0,16742.0,1.60856539]
[1672746377153,0.8707763,16743.0,16742.0,1.60856539]
[1672746377434,0.69175987,16743.0,16742.0,1.60856539]
[1672746377777,1.13894252,16743.0,16742.0,1.60856539]
[1672746377959,0.69175987,16743.0,16742.0,1.60856539]
[1672746378718,0.69175987,16743.0,16742.0,2.22313439]
[1672746378719,1.1389413,16743.0,16742.0,2.22313439]
[1672746378974,0.8707763,16743.0,16742.0,2.22313439]
[1672746379234,0.69175671,16743.0,16742.0,2.22313439]
[1672746379744,0.69175671,16743.0,16742.0,1.60856539]
[1672746379996,0.69175671,16743.0,16742.0,2.22313439]
[1672746380265,0.87051431,16743.0,16742.0,2.22313439]
[1672746380761,0.51289295,16743.0,16742.0,1.50582399]
[1672746381023,0.87051431,16743.0,16742.0,2.22313439]
[1672746381562,0.51289295,16743.0,16742.0,2.22313439]
[1672746381772,0.69175671,16743.0,16742.0,2.22313439]
[1672746382226,0.51286947,16743.0,16742.0,2.22313439]
[1672746383259,0.24470641,16743.0,16742.0,3.06049441]
[1672746383505,0.06597229,16743.0,16742.0,3.59593439]
[1672746383757,0.06597229,16743.0,16742.0,4.19323439]
[1672746384527,0.06597229,16743.0,16742.0,3.50159993]
[1672746384785,0.06597229,16743.0,16742.0,3.48110246]
[1672746385825,0.06597229,16743.0,16742.0,3.50159993]
[1672746386078,0.06597229,16743.0,16742.0,3.67799993]
[1672746386601,0.06597229,16743.0,16742.0,3.67792743]
[1672746387898,0.06597229,16743.0,16742.0,3.97792743]
[1672746388395,0.00597229,16743.0,16742.0,5.37419854]
[1672746388649,0.00597229,16743.0,16742.0,5.07419854]
[1672746388899,0.01897229,16743.0,16742.0,5.10119854]
[1672746389193,0.00597229,16743.0,16742.0,5.07419854]
[1672746389382,0.01897229,16743.0,16742.0,5.07419854]
[1672746389630,0.00597229,16743.0,16742.0,5.07419854]
[1672746389877,0.01897229,16743.0,16742.0,4.40119854]
[1672746390977,0.01897229,16743.0,16742.0,3.70192743]
[1672746392020,0.01897229,16743.0,16742.0,4.70192743]
[1672746393339,0.01897229,16743.0,16742.0,5.27412045]
[1672746393592,0.01897229,16743.0,16742.0,4.97412045]
[1672746395356,0.01897229,16743.0,16742.0,4.40192743]
[1672746396124,0.01897229,16743.0,16742.0,5.05778799]
[1672746397382,0.01897229,16743.0,16742.0,4.40192743]
[1672746397900,0.01897229,16743.0,16742.0,5.24046435]
[1672746398700,0.01897229,16743.0,16742.0,4.70192743]
[1672746398952,0.01897229,16743.0,16742.0,4.40192743]
[1672746399212,0.01897229,16743.0,16742.0,4.70192743]
[1672746402263,1e-08,16743.0,16742.0,4.70192743]
[1672746403322,1e-08,16743.0,16742.0,4.52372743]
[1672746407346,1e-08,16743.0,16742.0,5.3166336]
[1672746407581,1e-08,16743.0,16742.0,5.13747362]
[1672746408088,1e-08,16743.0,16742.0,6.84615778]
[1672746408389,1e-08,16743.0,16742.0,8.5365938]
[1672746408870,1e-08,16743.0,16742.0,7.9081463]
[1672746409128,1e-08,16743.0,16742.0,8.71661429]
[1672746409370,1e-08,16743.0,16742.0,8.50967533]
[1672746409663,1e-08,16743.0,16742.0,8.64967533]
[1672746410966,1e-08,16743.0,16742.0,8.47055781]
[1672746411461,1e-08,16743.0,16742.0,8.47054714]
[1672746411673,1e-08,16743.0,16742.0,8.82852057]
[1672746412689,1e-08,16743.0,16742.0,8.47054714]
[1672746412948,1e-08,16743.0,16742.0,7.58738274]
[1672746413207,1e-08,16743.0,16742.0,7.14022677]
[1672746413716,1e-08,16743.0,16742.0,7.31908268]
[1672746414745,1e-08,16743.0,16742.0,7.14022677]
[1672746417240,1e-08,16743.0,16742.0,7.31908268]
[1672746420017,1e-08,16743.0,16742.0,7.14022677]
[1672746420271,1e-08,16743.0,16742.0,6.44022677]
[1672746420553,1e-08,16743.0,16742.0,6.61908268]
[1672746421313,1e-08,16743.0,16742.0,7.31908268]
[1672746421807,1e-08,16743.0,16742.0,7.58738274]
[1672746423610,1e-08,16743.0,16742.0,8.47059732]
[1672746425815,1e-08,16743.0,16742.0,7.40069732]
[1672746427087,1e-08,16743.0,16742.0,6.51748274]
[1672746427344,1e-08,16743.0,16742.0,5.81748274]
[1672746427598,1e-08,16743.0,16742.0,6.70070572]
[1672746427850,1e-08,16743.0,16742.0,6.70069829]
[1672746428372,1e-08,16743.0,16742.0,7.40069829]
[1672746429143,1e-08,16743.0,16742.0,6.51748274]
[1672746429393,1e-08,16743.0,16742.0,7.40071113]
[1672746431672,1e-08,16743.0,16742.0,6.51748274]
[1672746432221,0.0708915,16745.0,16743.0,5.999e-05]
[1672746432483,0.0708915,16745.0,16744.0,3.257277]
[1672746432732,0.0708915,16745.0,16744.0,4.57349242]
[1672746433000,0.07686379,16745.0,16744.0,4.57349242]
[1672746433280,0.25559791,16745.0,16744.0,4.57349242]
[1672746433796,0.25559791,16745.0,16744.0,5.27349242]
[1672746434337,0.07686379,16745.0,16744.0,5.67539232]
[1672746435352,0.07686379,16745.0,16744.0,5.53439232]
[1672746435356,0.07686379,16745.0,16744.0,5.67739232]
[1672746435617,0.07686379,16745.0,16744.0,5.53439232]
[1672746435871,0.07686379,16745.0,16744.0,5.67539232]
[1672746436892,0.07686379,16745.0,16744.0,5.53439232]
[1672746437964,0.07686379,16745.0,16744.0,5.67739232]
[1672746438480,0.07686379,16745.0,16744.0,5.53439232]
[1672746438732,0.07686379,16745.0,16744.0,5.67539232]
[1672746439238,0.07686379,16745.0,16744.0,5.1155874]
[1672746439497,0.07686379,16745.0,16744.0,5.80138301]
[1672746439753,0.07686379,16745.0,16744.0,5.66038301]
[1672746440259,0.07686379,16745.0,16744.0,5.80138301]